fUST/lending_fUST_20250821
["ID","MTS","AMOUNT","RATE_DAILY","PERIOD"]
[380384258,1755720644888,-1000.0,0.00020521,2]
[380384260,1755720644897,-501.24782479,0.00020521,2]
[380384262,1755720644907,-500.0,0.0002061,2]
[380384264,1755720644916,-160.0,0.00020729,2]
[380384266,1755720644925,-3021.409445,0.00020732,2]
[380384268,1755720644934,-2616.73933338,0.00020835,2]
[380384270,1755720644943,-500.0,0.00020868,2]
[380384272,1755720644952,-500.0,0.00020868,2]
[380384274,1755720644962,-500.0,0.00020868,2]
[380384276,1755720644971,-503.11918519,0.00020868,2]
[380384278,1755720644980,-500.0,0.00020868,2]
[380384280,1755720644989,-1500.0,0.00020868,2]
[380384282,1755720644998,-1500.0,0.00020868,2]
[380384284,1755720645008,-500.0,0.00020884,2]
[380384286,1755720645018,-1000.0,0.00020892,2]
[380384296,1755720645113,-501.721902,0.00020896,2]
[380384298,1755720645123,-151.0,0.000209,3]
[380384300,1755720645134,-6630.80000241,0.00020977,2]
[380384302,1755720645144,-500.0,0.00020994,2]
[380384304,1755720645155,-151.0,0.00021,2]
[380384306,1755720645165,-151.0,0.00021,2]
[380384308,1755720645174,-151.0,0.00021,2]
[380384310,1755720645184,-151.0,0.00021,2]
[380384312,1755720645194,-151.58071857,0.00021,2]
[380384314,1755720645204,-151.0,0.00021,2]
[380384316,1755720645213,-151.0,0.00021,2]
[380384318,1755720645223,-202.08835659,0.00021,2]
[380384320,1755720645232,-500.0,0.00021,2]
[380384322,1755720645242,-500.0,0.00021,2]
[380384324,1755720645251,-151.0,0.00021,2]
[380384326,1755720645260,-500.0,0.00021,2]
[380384328,1755720645270,-151.0,0.00021,2]
[380384330,1755720645279,-151.28687626,0.00021,2]
[380384332,1755720645289,-151.0,0.00021,2]
[380384334,1755720645298,-151.0,0.00021,2]
[380384336,1755720645308,-500.0,0.00021,2]
[380384338,1755720645319,-151.0,0.00021,2]
[380384340,1755720645329,-151.0,0.00021,2]
[380384342,1755720645338,-500.0,0.00021,2]
[380384344,1755720645348,-500.0,0.00021,2]
[380384346,1755720645359,-203.61461519,0.00021,2]
[380384348,1755720645369,-151.0,0.00021,2]
[380384351,1755720645378,-151.31239949,0.00021,2]
[380384354,1755720645387,-151.0,0.00021,2]
[380384357,1755720645397,-151.2023969,0.00021,2]
[380384360,1755720645405,-500.0,0.00021,2]
[380384363,1755720645415,-500.0,0.00021,2]
[380384365,1755720645424,-500.0,0.00021,2]
[380384367,1755720645433,-151.0,0.00021,2]
[380384369,1755720645443,-151.0,0.00021,2]
[380384371,1755720645452,-500.0,0.00021,2]
[380384374,1755720645462,-500.0,0.00021,2]
[380384377,1755720645471,-500.0,0.00021,2]
[380384381,1755720645481,-621.0,0.00021,2]
[380384383,1755720645490,-500.0,0.00021,2]
[380384385,1755720645499,-151.0,0.00021,2]
[380384387,1755720645509,-1005.61033,0.00021001,2]
[380384389,1755720645518,-160.0,0.00021068,2]
[380384391,1755720645527,-1500.0,0.00021068,2]
[380384393,1755720645536,-1006.44293554,0.00021068,2]
[380384395,1755720645546,-1612.2295198,0.00021068,2]
[380384397,1755720645555,-287.3942867,0.00021068,2]
[380384399,1755720645564,-1001.31855364,0.00021068,2]
[380384401,1755720645576,-1500.0,0.00021068,2]
[380384403,1755720645586,-1500.0,0.00021068,2]
[380384405,1755720645595,-500.0,0.00021068,2]
[380384407,1755720645604,-420.0,0.00021103,2]
[380384409,1755720645613,-1680.0,0.00021104,2]
[380384411,1755720645623,-500.0,0.00021117,2]
[380384413,1755720645632,-500.0,0.00021117,2]
[380384415,1755720645641,-500.0,0.00021117,2]
[380384417,1755720645650,-500.0,0.00021138,2]
[380384418,1755720645659,-150.0,0.00021142,2]
[380384420,1755720645668,-500.0,0.00021158,2]
[380384422,1755720645677,-642.64,0.0002116,3]
[380384424,1755720645686,-351.84,0.0002116,3]
[380384426,1755720645695,-415.82,0.0002116,3]
[380384428,1755720645704,-206.78720038,0.00021201,2]
[380384430,1755720645713,-1680.0,0.00021206,2]
[380384432,1755720645722,-158.7577131,0.00021274,2]
[380384434,1755720645731,-151.0,0.00021274,2]
[380384436,1755720645740,-151.0,0.00021274,2]
[380384438,1755720645751,-151.0,0.00021274,2]
[380384440,1755720645763,-151.0,0.00021274,2]
[380384442,1755720645773,-151.0,0.00021274,2]
[380384444,1755720645781,-500.0,0.00021274,2]
[380384446,1755720645791,-500.0,0.00021274,2]
[380384448,1755720645801,-248.50490239,0.00021274,2]
[380384450,1755720645810,-500.0,0.00021274,2]
[380384452,1755720645822,-186.85147384,0.00021274,2]
[380384454,1755720645831,-151.96446113,0.00021274,2]
[380384456,1755720645841,-151.0,0.00021274,2]
[380384458,1755720645850,-500.0,0.00021274,2]
[380384460,1755720645859,-151.0,0.00021274,2]
[380384462,1755720645868,-151.0,0.00021274,2]
[380384464,1755720645878,-500.0,0.00021274,2]
[380384466,1755720645887,-500.0,0.00021274,2]
[380384468,1755720645896,-151.0,0.00021274,2]
[380384470,1755720645906,-151.0,0.00021274,2]
[380384472,1755720645917,-500.0,0.00021274,2]
[380384474,1755720645926,-500.0,0.00021274,2]
[380384476,1755720645935,-500.0,0.00021274,2]
[380384478,1755720645944,-151.0,0.00021274,2]
[380384480,1755720645953,-500.0,0.00021274,2]
[380384482,1755720645963,-500.0,0.00021274,2]
[380384484,1755720645971,-500.0,0.00021274,2]
[380384486,1755720645979,-621.0,0.00021274,2]
[380384488,1755720645988,-500.0,0.00021274,2]
[380384490,1755720645997,-151.0,0.00021274,2]
[380384491,1755720646006,-151.0,0.000213,4]
[380384493,1755720646016,-500.0,0.00021308,2]
[380384495,1755720646025,-321.32,0.0002135,3]
[380384497,1755720646035,-249.3,0.00021355,2]
[380384499,1755720646045,-500.0,0.00021355,2]
[380384501,1755720646054,-501.84672423,0.00021355,2]
[380384503,1755720646063,-500.0,0.00021355,2]
[380384505,1755720646076,-500.0,0.00021355,2]
[380384507,1755720646086,-309.70042856,0.00021355,2]
[380384509,1755720646095,-320.74606242,0.00021355,2]
[380384511,1755720646104,-500.0,0.00021392,2]
[380384513,1755720646114,-500.0,0.00021392,2]
[380384515,1755720646123,-500.0,0.00021392,2]
[380384517,1755720646132,-500.0,0.00021392,2]
[380384519,1755720646142,-500.0,0.00021392,2]
[380384521,1755720646151,-151.0,0.000214,4]
[380384524,1755720646160,-1500.0,0.00021416,2]
[380384527,1755720646170,-2060.30109212,0.00021416,2]
[380384529,1755720646180,-500.0,0.00021432,2]
[380384531,1755720646189,-500.0,0.0002144,2]
[380384533,1755720646199,-960.14,0.00021527,3]
[380384535,1755720646208,-480.06,0.00021527,3]
[380384537,1755720646217,-3840.56,0.00021533,3]
[380384539,1755720646225,-1920.28,0.00021533,3]
[380384541,1755720646235,-190.52085698,0.00021548,2]
[380384542,1755720646243,-151.0,0.00021548,2]
[380384544,1755720646252,-151.0,0.00021548,2]
[380384546,1755720646262,-151.0,0.00021548,2]
[380384548,1755720646271,-151.0,0.00021548,2]
[380384550,1755720646280,-500.0,0.00021548,2]
[380384552,1755720646289,-501.29105189,0.00021548,2]
[380384554,1755720646299,-500.0,0.00021548,2]
[380384556,1755720646308,-151.0,0.00021548,2]
[380384558,1755720646320,-500.0,0.00021548,2]
[380384560,1755720646329,-151.0,0.00021548,2]
[380384562,1755720646338,-151.0,0.00021548,2]
[380384564,1755720646348,-208.0,0.00021548,2]
[380384566,1755720646357,-500.0,0.00021548,2]
[380384568,1755720646366,-151.0,0.00021548,2]
[380384570,1755720646375,-151.0,0.00021548,2]
[380384572,1755720646385,-500.0,0.00021548,2]
[380384574,1755720646394,-500.0,0.00021548,2]
[380384576,1755720646403,-453.0,0.00021548,2]
[380384578,1755720646413,-151.0,0.00021548,2]
[380384580,1755720646422,-302.0,0.00021548,2]
[380384582,1755720646431,-500.0,0.00021548,2]
[380384584,1755720646440,-500.0,0.00021548,2]
[380384586,1755720646450,-621.0,0.00021548,2]
[380384588,1755720646460,-500.0,0.00021548,2]
[380384590,1755720646470,-151.0,0.00021548,2]
[380384592,1755720646478,-260.0,0.00021616,2]
[380384594,1755720646488,-500.0,0.00021616,2]
[380384596,1755720646498,-500.0,0.00021616,2]
[380384598,1755720646507,-2000.0,0.00021616,2]
[380384599,1755720646516,-1000.0,0.00021665,2]
[380384601,1755720646525,-1001.70449007,0.00021665,2]
[380384603,1755720646534,-5059.56,0.00021671,3]
[380384605,1755720646543,-160.0,0.00021671,3]
[380384607,1755720646553,-1000.0,0.00021685,2]
[380384609,1755720646562,-500.0,0.00021706,2]
[380384611,1755720646573,-2616.73933338,0.00021771,2]
[380384613,1755720646582,-151.0,0.000218,4]
[380384615,1755720646591,-151.0,0.000218,3]
[380384617,1755720646600,-226.8933604,0.00021822,2]
[380384619,1755720646610,-151.0,0.00021822,2]
[380384621,1755720646619,-151.0,0.00021822,2]
[380384623,1755720646629,-151.93370689,0.00021822,2]
[380384625,1755720646638,-500.0,0.00021822,2]
[380384627,1755720646647,-500.0,0.00021822,2]
[380384629,1755720646656,-210.50940212,0.00021822,2]
[380384631,1755720646666,-500.0,0.00021822,2]
[380384633,1755720646675,-198.0,0.00021822,2]
[380384635,1755720646684,-151.0,0.00021822,2]
[380384637,1755720646693,-500.0,0.00021822,2]
[380384639,1755720646702,-151.0,0.00021822,2]
[380384641,1755720646711,-151.0,0.00021822,2]
[380384643,1755720646720,-255.0,0.00021822,2]
[380384645,1755720646729,-500.0,0.00021822,2]
[380384647,1755720646739,-151.0,0.00021822,2]
[380384649,1755720646748,-474.36593276,0.00021822,2]
[380384651,1755720646762,-361.71251693,0.00021822,2]
[380384661,1755720646850,-621.0,0.00021822,2]
[380384663,1755720646859,-500.0,0.00021822,2]
[380384665,1755720646869,-1000.0,0.00021856,2]
[380384667,1755720646878,-1000.0,0.00021902,2]
[380384669,1755720646887,-500.0,0.00021902,2]
[380384671,1755720646897,-151.0,0.00021918,2]
[380384673,1755720646906,-151.0,0.00021918,2]
[380384675,1755720646915,-151.0,0.00021918,2]
[380384677,1755720646924,-151.0,0.00021918,2]
[380384679,1755720646934,-151.0,0.00021918,2]
[380384681,1755720646943,-151.0,0.00021918,2]
[380384683,1755720646952,-151.0,0.00021918,2]
[380384685,1755720646961,-151.0,0.00021918,2]
[380384687,1755720646971,-151.0,0.00021918,2]
[380384689,1755720646980,-151.0,0.00021918,2]
[380384691,1755720646989,-151.0,0.00021918,2]
[380384693,1755720646998,-150.0,0.00021918,2]
[380384695,1755720647007,-1000.0,0.0002194,2]
[380384697,1755720647017,-1000.0,0.0002194,2]
[380384699,1755720647027,-345.42670777,0.0002194,2]
[380384700,1755720647036,-500.0,0.00021973,2]
[380384701,1755720647045,-1000.0,0.00021973,2]
[380384702,1755720647055,-1000.0,0.00021973,2]
[380384703,1755720647064,-500.0,0.0002198,2]
[380384704,1755720647075,-12687.94051737,0.00022,7]
[380384705,1755720647084,-25414.77,0.00022,2]
[380384706,1755720647094,-1065.01,0.00022,7]
[380384707,1755720647103,-9485.71,0.00022,7]
[380384708,1755720647112,-5417.28,0.00022,7]
[380384709,1755720647122,-375.94359665,0.00022,7]
[380384710,1755720647131,-180.63811972,0.00022032,5]
[380384711,1755720647140,-239.84615473,0.00022096,2]
[380384712,1755720647149,-442.8336916,0.00022096,2]
[380384713,1755720647158,-326.32682312,0.00022096,2]
[380384714,1755720647167,-618.79676134,0.00022096,2]
[380384715,1755720647176,-323.58841261,0.00022096,2]
[380384716,1755720647185,-151.0,0.00022096,2]
[380384718,1755720647195,-198.0,0.00022096,2]
[380384720,1755720647204,-500.0,0.00022096,2]
[380384722,1755720647213,-151.0,0.00022096,2]
[380384724,1755720647222,-621.0,0.00022096,2]
[380384726,1755720647231,-500.0,0.00022096,2]
[380384728,1755720647241,-360.0,0.00022164,2]
[380384730,1755720647250,-2500.0,0.00022164,2]
[380384732,1755720647259,-151.0,0.000222,7]
[380384734,1755720647269,-180.67183153,0.00022201,2]
[380384736,1755720647278,-602.46485233,0.00022201,2]
[380384738,1755720647287,-2407.4495499,0.00022201,2]
[380384740,1755720647297,-1500.0,0.00022213,2]
[380384742,1755720647306,-500.0,0.00022254,2]
[380384744,1755720647315,-8299.00408405,0.00022254,2]
[380384746,1755720647326,-6630.80000241,0.00022254,2]
[380384748,1755720647336,-151.0,0.000223,5]
[380384750,1755720647345,-151.000002,0.0002237,2]
[380384752,1755720647355,-500.0,0.0002237,2]
[380384754,1755720647364,-621.0,0.0002237,2]
[380384756,1755720647375,-500.0,0.0002237,2]
[380384758,1755720647384,-1500.0,0.00022404,2]
[380384760,1755720647393,-300.0,0.00022466,2]
[380384762,1755720647403,-1003.66116912,0.00022488,2]
[380384764,1755720647412,-1500.0,0.00022488,2]
[380384766,1755720647422,-1019.39024622,0.00022521,2]
[380384768,1755720647431,-500.0,0.00022528,2]
[380384770,1755720647440,-151.0,0.000226,6]
[380384772,1755720647450,-291.70077764,0.00022615,2]
[380384774,1755720647459,-549.76264029,0.00022644,2]
[380384776,1755720647468,-621.0,0.00022644,2]
[380384778,1755720647478,-500.0,0.00022644,2]
[380384780,1755720647487,-151.0,0.000227,5]
[380384782,1755720647496,-2616.73933338,0.00022706,2]
[380384784,1755720647505,-460.0,0.00022712,2]
[380384786,1755720647515,-3000.0,0.00022712,2]
[380384788,1755720647525,-184.36181287,0.00022714,5]
[380384790,1755720647534,-5000.0,0.00022729,2]
[380384792,1755720647543,-1000.69307547,0.00022795,2]
[380384794,1755720647552,-153.0,0.00022795,2]
[380384796,1755720647561,-160.8718701,0.00022795,2]
[380384798,1755720647572,-500.0,0.00022802,2]
[380384800,1755720647581,-151.0,0.000229,8]
[380384802,1755720647591,-621.0,0.00022918,2]
[380384804,1755720647600,-406.0,0.00022918,2]
[380384806,1755720647609,-696.5037321,0.00022952,2]
[380384809,1755720647618,-168.0,0.00022958,2]
[380384811,1755720647627,-587.0,0.00022994,2]
[380384813,1755720647636,-2165.0,0.00022995,2]
[380384814,1755720647645,-151.0,0.00023,8]
[380384817,1755720647654,-216.9170744,0.00023,3]
[380384819,1755720647663,-160.0,0.00023,2]
[380384821,1755720647673,-160.0,0.00023,3]
[380384823,1755720647683,-232.24568399,0.00023,3]
[380384825,1755720647692,-160.0,0.00023,3]
[380384827,1755720647701,-844.05985274,0.00023,3]
[380384829,1755720647710,-168.0,0.00023,2]
[380384831,1755720647718,-249.12013894,0.00023036,2]
[380384833,1755720647728,-500.0,0.00023076,2]
[380384835,1755720647737,-151.0,0.000231,6]
[380384837,1755720647747,-843.0,0.0002315,2]
[380384839,1755720647759,-578.20443966,0.00023173,2]
[380384841,1755720647768,-500.0,0.00023173,2]
[380384843,1755720647778,-159.679072,0.00023182,2]
[380384845,1755720647787,-168.0,0.00023185,2]
[380384847,1755720647797,-621.0,0.00023192,2]
[380384849,1755720647806,-25414.77,0.000232,2]
[380384851,1755720647815,-1065.01,0.000232,7]
[380384853,1755720647825,-9485.71,0.000232,7]
[380384855,1755720647836,-5417.28,0.000232,7]
[380384857,1755720647845,-160.0,0.00023214,2]
[380384859,1755720647855,-2351.0,0.00023218,2]
[380384861,1755720647864,-160.0,0.00023219,2]
[380384863,1755720647873,-160.0,0.00023219,2]
[380384865,1755720647883,-216.9170744,0.00023219,2]
[380384867,1755720647892,-160.0,0.00023219,2]
[380384869,1755720647901,-160.0,0.00023219,2]
[380384871,1755720647911,-528.77847288,0.0002322,2]
[380384873,1755720647920,-375.94359665,0.0002322,2]
[380384875,1755720647929,-215.82729805,0.0002322,2]
[380384877,1755720647939,-843.0,0.00023234,2]
[380384879,1755720647948,-560.0,0.0002326,2]
[380384881,1755720647957,-3500.0,0.0002326,2]
[380384883,1755720647966,-168.0,0.00023309,2]
[380384885,1755720647976,-500.0,0.0002335,2]
[380384887,1755720647985,-151.0,0.000234,6]
[380384889,1755720647995,-251.70148214,0.00023439,2]
[380384891,1755720648005,-621.0,0.00023466,2]
[380384893,1755720648014,-151.0,0.000235,10]
[380384895,1755720648024,-151.0,0.000235,7]
[380384897,1755720648033,-6630.80000241,0.00023531,2]
[380384899,1755720648042,-168.0,0.00023615,2]
[380384901,1755720648052,-500.0,0.00023624,2]
[380384904,1755720648061,-250.0,0.00023629,2]
[380384906,1755720648072,-300.0,0.00023641,2]
[380384908,1755720648082,-1372.72231601,0.00023716,2]
[380384910,1755720648092,-500.0,0.00023721,2]
[380384912,1755720648101,-1372.72231601,0.00023722,2]
[380384914,1755720648110,-621.0,0.0002374,2]
[380384916,1755720648120,-1270.80617706,0.00023755,2]
[380384917,1755720648129,-1270.80617706,0.00023767,2]
[380384920,1755720648138,-194.72389896,0.00023781,2]
[380384922,1755720648147,-660.0,0.00023808,2]
[380384924,1755720648157,-4000.0,0.00023808,2]
[380384926,1755720648166,-321.7437402,0.00023808,2]
[380384928,1755720648175,-168.0,0.00023815,2]
[380384930,1755720648185,-204.64372186,0.00023873,2]
[380384932,1755720648194,-500.0,0.00023898,2]
[380384934,1755720648204,-200.0,0.00023899,2]
[380384936,1755720648214,-151.0,0.000239,10]
[380384938,1755720648224,-427431.51,0.000239,4]
[380384940,1755720648233,-160.8718701,0.00023918,2]
[380384942,1755720648243,-293.9452039,0.00023918,2]
[380384943,1755720648252,-153.0,0.00023918,2]
[380384945,1755720648263,-153.0,0.00023918,2]
[380384947,1755720648272,-160.8718701,0.00023918,2]
[380384950,1755720648282,-293.9452039,0.00023918,2]
[380384952,1755720648292,-1162.0018274,0.00023918,2]
[380384954,1755720648302,-293.9452039,0.00023918,2]
[380384956,1755720648311,-1170.3968147,0.00023918,2]
[380384958,1755720648322,-306.0,0.00023918,2]
[380384959,1755720648331,-153.0,0.00023918,2]
[380384961,1755720648341,-321.7437402,0.00023918,2]
[380384963,1755720648350,-587.8904078,0.00023918,2]
[380384965,1755720648359,-293.9452039,0.00023918,2]
[380384976,1755720648448,-581.0009137,0.00023918,2]
[380384978,1755720648457,-243.2153682,0.00023945,2]
[380384980,1755720648467,-216.9170744,0.00024,7]
[380384982,1755720648478,-160.0,0.00024,7]
[380384984,1755720648488,-232.24568399,0.00024,7]
[380384986,1755720648497,-160.0,0.00024,7]
[380384988,1755720648507,-844.05985274,0.00024,7]
[380384990,1755720648516,-621.0,0.00024014,2]
[380384992,1755720648525,-1293.0,0.00024057,2]
[380384994,1755720648535,-168.0,0.00024088,2]
[380384996,1755720648544,-500.0,0.00024172,2]
[380384998,1755720648553,-151.26558543,0.00024254,2]
[380385000,1755720648562,-278.30464897,0.00024254,2]
[380385002,1755720648572,-151.13703646,0.00024254,2]
[380385004,1755720648581,-581.0009137,0.00024278,2]
[380385006,1755720648591,-621.0,0.00024288,2]
[380385008,1755720648601,-3489.21279611,0.00024288,2]
[380385010,1755720648610,-25414.77,0.000243,2]
[380385012,1755720648619,-1065.01,0.000243,7]
[380385014,1755720648629,-168.0,0.00024302,2]
[380385016,1755720648639,-1293.0,0.00024338,2]
[380385018,1755720648648,-760.0,0.00024356,2]
[380385020,1755720648657,-4500.0,0.00024356,2]
[380385022,1755720648668,-160.8718701,0.00024384,2]
[380385024,1755720648677,-160.8718701,0.00024384,2]
[380385026,1755720648687,-160.8718701,0.00024384,2]
[380385028,1755720648697,-160.8718701,0.00024384,2]
[380385030,1755720648706,-160.8718701,0.00024384,2]
[380385032,1755720648716,-160.8718701,0.00024384,2]
[380385034,1755720648725,-160.8718701,0.00024384,2]
[380385036,1755720648734,-160.8718701,0.00024384,2]
[380385038,1755720648744,-160.8718701,0.00024384,2]
[380385040,1755720648756,-581.0009137,0.00024384,2]
[380385042,1755720648765,-581.0009137,0.00024384,2]
[380385044,1755720648774,-151.0,0.000244,9]
[380385046,1755720648788,-168.0,0.00024421,2]
[380385049,1755720648798,-155.18,0.00024476,7]
[380385051,1755720648808,-9485.71,0.000245,7]
[380385053,1755720648817,-5417.28,0.000245,7]
[380385054,1755720648829,-216.9170744,0.000245,7]
[380385056,1755720648838,-844.05985274,0.000245,7]
[380385058,1755720648848,-883.2,0.00024508,7]
[380385060,1755720648858,-168.0,0.00024535,2]
[380385062,1755720648867,-168.0,0.00024547,2]
[380385064,1755720648876,-621.0,0.00024562,2]
[380385066,1755720648885,-166.02871,0.00024562,2]
[380385068,1755720648895,-2616.73933338,0.00024577,2]
[380385070,1755720648905,-151.0,0.000246,5]
[380385072,1755720648917,-3000.0,0.000246,2]
[380385075,1755720648926,-883.2,0.00024608,7]
[380385077,1755720648935,-3000.0,0.0002461,2]
[380385079,1755720648945,-3000.0,0.0002462,2]
[380385081,1755720648954,-1293.0,0.00024629,7]
[380385082,1755720648963,-3000.0,0.0002463,2]
[380385084,1755720648972,-581.0009137,0.0002463,2]
[380385086,1755720648982,-581.0009137,0.0002463,2]
[380385089,1755720648991,-581.0009137,0.0002463,2]
[380385091,1755720649001,-475.0171241,0.0002463,2]
[380385093,1755720649010,-3000.0,0.0002464,2]
[380385095,1755720649020,-3000.0,0.0002465,2]
[380385097,1755720649029,-150.0,0.00024658,2]
[380385099,1755720649038,-150.0,0.00024658,2]
[380385101,1755720649048,-200.0,0.00024658,15]
[380385103,1755720649057,-500.0,0.00024658,2]
[380385105,1755720649066,-3000.0,0.0002466,2]
[380385107,1755720649077,-3000.0,0.0002467,2]
[380385109,1755720649087,-3000.0,0.0002468,2]
[380385111,1755720649096,-306.0,0.00024685,2]
[380385113,1755720649106,-306.0,0.00024685,2]
[380385115,1755720649115,-3000.0,0.0002469,2]
[380385117,1755720649124,-3000.0,0.000247,2]
[380385119,1755720649133,-883.2,0.00024708,7]
[380385120,1755720649143,-3000.0,0.0002471,2]
[380385123,1755720649153,-3000.0,0.0002472,2]
[380385125,1755720649162,-3000.0,0.0002473,2]
[380385127,1755720649172,-3000.0,0.0002474,2]
[380385129,1755720649182,-3000.0,0.0002475,2]
[380385131,1755720649191,-3000.0,0.0002476,2]
[380385133,1755720649201,-3000.0,0.0002477,2]
[380385135,1755720649210,-4177.030242,0.0002478,2]
[380385137,1755720649220,-13200.1590708,0.000248,2]
[380385139,1755720649229,-1780.07623671,0.00024804,2]
[380385141,1755720649238,-8299.00408405,0.00024808,2]
[380385143,1755720649248,-6630.80000241,0.00024808,2]
[380385144,1755720649257,-883.2,0.00024808,7]
[380385147,1755720649267,-5492.29492984,0.00024825,7]
[380385149,1755720649276,-621.0,0.00024836,2]
[380385151,1755720649286,-150.81405309,0.00024873,2]
[380385153,1755720649295,-353.28192114,0.00024899,2]
[380385155,1755720649305,-3000.0,0.000249,2]
[380385157,1755720649315,-769639.868093,0.000249,2]
[380385159,1755720649326,-860.0,0.00024904,2]
[380385161,1755720649335,-5000.0,0.00024904,2]
[380385163,1755720649344,-883.2,0.00024908,7]
[380385165,1755720649353,-160.0,0.0002492,3]
[380385167,1755720649362,-500.0,0.00024932,2]
[380385169,1755720649371,-112225.78999196,0.00025,10]
[380385171,1755720649380,-203.97,0.00025,2]
[380385173,1755720649390,-216.9170744,0.00025,10]
[380385175,1755720649400,-1558.215259,0.00025,2]
[380385177,1755720649409,-417.15472785,0.00025,10]
[380385179,1755720649418,-375.94359665,0.00025,10]
[380385181,1755720649428,-516.96800095,0.00025001,2]
[380385183,1755720649437,-883.2,0.00025008,7]
[380385185,1755720649446,-232.24568399,0.00025022,2]
[380385187,1755720649456,-160.0,0.00025022,2]
[380385189,1755720649466,-844.05985274,0.00025022,2]
[380385191,1755720649475,-845.559397,0.00025024,2]
[380385193,1755720649484,-823.0,0.00025054,2]
[380385195,1755720649493,-754.0,0.00025065,7]
[380385197,1755720649503,-883.2,0.00025108,7]
[380385199,1755720649512,-621.0,0.0002511,2]
[380385201,1755720649522,-250.0,0.00025205,2]
[380385203,1755720649531,-250.0,0.00025205,2]
[380385205,1755720649540,-500.0,0.00025206,2]
[380385207,1755720649550,-883.2,0.00025208,7]
[380385208,1755720649559,-751.0,0.00025264,2]
[380385210,1755720649568,-754.0,0.00025274,2]
[380385212,1755720649578,-883.2,0.00025308,7]
[380385214,1755720649586,-386.7798227,0.00025315,2]
[380385216,1755720649595,-386.7798227,0.00025315,2]
[380385218,1755720649605,-386.7798227,0.00025315,2]
[380385220,1755720649618,-580.3025508,0.00025315,2]
[380385222,1755720649631,-773.5596454,0.00025315,2]
[380385224,1755720649640,-621.0,0.00025384,2]
[380385226,1755720649650,-25414.77,0.000254,2]
[380385228,1755720649659,-1065.01,0.000254,7]
[380385230,1755720649668,-883.2,0.00025408,7]
[380385232,1755720649677,-919.0,0.0002542,2]
[380385234,1755720649686,-159.73,0.00025433,2]
[380385236,1755720649695,-973.0,0.00025433,2]
[380385238,1755720649704,-637.0,0.00025433,2]
[380385240,1755720649713,-2154.0,0.00025433,2]
[380385242,1755720649722,-960.0,0.00025452,2]
[380385244,1755720649732,-5500.0,0.00025452,2]
[380385246,1755720649741,-900.0,0.00025469,3]
[380385248,1755720649753,-300.0,0.00025475,2]
[380385250,1755720649763,-500.0,0.00025475,2]
[380385252,1755720649772,-151.0,0.00025475,2]
[380385254,1755720649781,-300.0,0.00025475,2]
[380385256,1755720649791,-151.0,0.00025475,2]
[380385258,1755720649800,-500.0,0.00025475,2]
[380385260,1755720649810,-151.0,0.00025475,2]
[380385262,1755720649819,-300.0,0.00025475,2]
[380385264,1755720649829,-151.0,0.00025475,2]
[380385266,1755720649839,-500.0,0.00025475,2]
[380385268,1755720649849,-151.0,0.00025475,2]
[380385278,1755720649925,-300.0,0.00025475,2]
[380385280,1755720649943,-151.0,0.00025475,2]